[Event "new tournament description"]
[Site ""]
[Date "2018.12.27"]
[Round "4.1"]
[White "VATTER"]
[Black "GOZZOLI"]
[Result "0-1"]
[TimeControl "4min+2sec"]
[WhiteElo "2265"]
[BlackElo "2565"]

1. e4 {[%clk 00:04:02]} e5 {[%clk 00:03:57]} {[%emt 00:00:08]} 2. Nf3 {[%clk
00:04:02]} {[%emt 00:00:02]} Nc6 {[%clk 00:03:58]} {[%emt 00:00:01]} 3. Bc4
{[%clk 00:04:03]} {[%emt 00:00:01]} Nf6 {[%clk 00:03:57]} {[%emt 00:00:03]} 4.
d4 {[%clk 00:04:01]} {[%emt 00:00:04]} exd4 {[%clk 00:03:57]} {[%emt 00:00:02]}
5. O-O {[%clk 00:04:01]} {[%emt 00:00:03]} Nxe4 {[%clk 00:03:56]} {[%emt
00:00:03]} 6. Re1 {[%clk 00:04:01]} d5 {[%clk 00:03:57]} 7. Bxd5 {[%clk
00:04:02]} {[%emt 00:00:02]} Qxd5 {[%clk 00:03:59]} 8. Nc3 {[%clk 00:04:02]}
{[%emt 00:00:02]} Qh5 {[%clk 00:04:00]} 9. Nxe4 {[%clk 00:04:02]} {[%emt
00:00:04]} Be6 {[%clk 00:04:01]} 10. Bg5 {[%clk 00:03:55]} {[%emt 00:00:09]}
Bd6 {[%clk 00:04:01]} {[%emt 00:00:02]} 11. Nxd6+ {[%clk 00:03:53]} {[%emt
00:00:04]} cxd6 {[%clk 00:04:02]} {[%emt 00:00:01]} 12. Bf4 {[%clk 00:03:54]}
{[%emt 00:00:01]} Qd5 {[%clk 00:03:53]} {[%emt 00:00:11]} 13. c3 {[%clk
00:03:54]} {[%emt 00:00:02]} h6 {[%clk 00:03:50]} {[%emt 00:00:05]} 14. Nxd4
{[%clk 00:03:53]} {[%emt 00:00:03]} Nxd4 {[%clk 00:03:51]} {[%emt 00:00:01]} 15.
Qxd4 {[%clk 00:03:53]} {[%emt 00:00:02]} Qxd4 {[%clk 00:03:51]} {[%emt
00:00:01]} 16. cxd4 {[%clk 00:03:53]} {[%emt 00:00:02]} Kd7 {[%clk 00:03:52]}
{[%emt 00:00:01]} 17. a3 {[%clk 00:03:42]} {[%emt 00:00:13]} Bd5 {[%clk
00:03:47]} {[%emt 00:00:07]} 18. Rac1 {[%clk 00:03:41]} {[%emt 00:00:03]} Rac8
{[%clk 00:03:38]} {[%emt 00:00:11]} 19. f3 {[%clk 00:03:38]} {[%emt 00:00:06]}
g5 {[%clk 00:03:28]} {[%emt 00:00:12]} 20. Bd2 {[%clk 00:03:35]} {[%emt
00:00:05]} Rc6 {[%clk 00:03:20]} {[%emt 00:00:10]} 21. Rxc6 {[%clk 00:03:30]}
{[%emt 00:00:07]} bxc6 {[%clk 00:03:18]} {[%emt 00:00:04]} 22. Kf2 {[%clk
00:03:26]} {[%emt 00:00:06]} Rg8 {[%clk 00:03:12]} {[%emt 00:00:09]} 23. h4
{[%clk 00:03:13]} {[%emt 00:00:15]} f6 {[%clk 00:02:50]} {[%emt 00:00:24]} 24.
hxg5 {[%clk 00:03:10]} {[%emt 00:00:05]} fxg5 {[%clk 00:02:50]} {[%emt
00:00:01]} 25. Rh1 {[%clk 00:02:57]} {[%emt 00:00:15]} Rg6 {[%clk 00:02:52]} 26.
Re1 {[%clk 00:02:48]} {[%emt 00:00:11]} Rf6 {[%clk 00:02:10]} {[%emt 00:00:44]}
27. Kg3 {[%clk 00:02:43]} {[%emt 00:00:07]} Be6 {[%clk 00:02:03]} {[%emt
00:00:09]} 28. Rh1 {[%clk 00:02:16]} {[%emt 00:00:29]} Rg6 {[%clk 00:02:03]}
{[%emt 00:00:02]} 29. Kf2 {[%clk 00:02:12]} {[%emt 00:00:07]} Bd5 {[%clk
00:02:00]} {[%emt 00:00:05]} 30. Rh2 {[%clk 00:02:09]} {[%emt 00:00:05]} Ke6
{[%clk 00:01:55]} {[%emt 00:00:06]} 31. Rh1 {[%clk 00:02:07]} {[%emt 00:00:04]}
Kf7 {[%clk 00:01:53]} {[%emt 00:00:04]} 32. Re1 {[%clk 00:02:02]} {[%emt
00:00:07]} h5 {[%clk 00:01:53]} {[%emt 00:00:02]} 33. g3 {[%clk 00:01:40]}
{[%emt 00:00:24]} Rg8 {[%clk 00:01:44]} {[%emt 00:00:12]} 34. Bb4 {[%clk
00:01:34]} {[%emt 00:00:09]} Rg6 {[%clk 00:01:25]} {[%emt 00:00:21]} 35. Bd2
{[%clk 00:01:30]} {[%emt 00:00:06]} Rf6 {[%clk 00:01:25]} {[%emt 00:00:02]} 36.
f4 {[%clk 00:01:29]} {[%emt 00:00:02]} g4 {[%clk 00:01:20]} {[%emt 00:00:07]}
37. Rc1 {[%clk 00:01:11]} {[%emt 00:00:21]} Rg6 {[%clk 00:01:20]} {[%emt
00:00:02]} 38. Rc3 {[%clk 00:01:02]} {[%emt 00:00:11]} Rg8 {[%clk 00:01:12]}
{[%emt 00:00:10]} 39. Re3 {[%clk 00:00:58]} {[%emt 00:00:05]} Rb8 {[%clk
00:01:06]} {[%emt 00:00:08]} 40. Bb4 {[%clk 00:00:55]} {[%emt 00:00:05]} Rd8
{[%clk 00:00:53]} {[%emt 00:00:16]} 41. Ba5 {[%clk 00:00:52]} {[%emt 00:00:05]}
Rd7 {[%clk 00:00:47]} {[%emt 00:00:08]} 42. Bb4 {[%clk 00:00:48]} {[%emt
00:00:06]} Bc4 {[%clk 00:00:45]} {[%emt 00:00:04]} 43. Rc3 {[%clk 00:00:46]}
{[%emt 00:00:04]} Bd5 {[%clk 00:00:45]} {[%emt 00:00:03]} 44. Re3 {[%clk
00:00:47]} a6 {[%clk 00:00:46]} {[%emt 00:00:01]} 45. Rc3 {[%clk 00:00:41]}
{[%emt 00:00:07]} Kg6 {[%clk 00:00:46]} {[%emt 00:00:02]} 46. Re3 {[%clk
00:00:41]} {[%emt 00:00:02]} Kf7 {[%clk 00:00:39]} {[%emt 00:00:09]} 47. Rc3
{[%clk 00:00:34]} {[%emt 00:00:09]} Rb7 {[%clk 00:00:37]} {[%emt 00:00:04]} 48.
Re3 {[%clk 00:00:27]} {[%emt 00:00:09]} a5 {[%clk 00:00:32]} {[%emt 00:00:07]}
49. Bxd6 {[%clk 00:00:23]} {[%emt 00:00:06]} Rxb2+ {[%clk 00:00:33]} {[%emt
00:00:01]} 50. Re2 {[%clk 00:00:24]} Rb3 {[%clk 00:00:34]} 51. Re3 {[%clk
00:00:17]} {[%emt 00:00:09]} Rb2+ {[%clk 00:00:34]} {[%emt 00:00:02]} 52. Re2
{[%clk 00:00:18]} {[%emt 00:00:01]} Rb7 {[%clk 00:00:35]} 53. Re5 {[%clk
00:00:16]} {[%emt 00:00:04]} a4 {[%clk 00:00:27]} {[%emt 00:00:10]} 54. Bb4
{[%clk 00:00:15]} {[%emt 00:00:03]} Rxb4 {[%clk 00:00:19]} {[%emt 00:00:10]} 55.
axb4 {[%clk 00:00:12]} {[%emt 00:00:04]} a3 {[%clk 00:00:20]} 56. Re1 {[%clk
00:00:09]} {[%emt 00:00:05]} a2 {[%clk 00:00:22]} 57. Rc1 {[%emt 00:00:09]} 0-1

[Event "new tournament description"]
[Site ""]
[Date "2018.12.27"]
[Round "4.2"]
[White "GULIYEV"]
[Black "BRIET"]
[Result "1-0"]
[TimeControl "4min+2sec"]
[WhiteElo "2550"]
[BlackElo "2242"]

1. e4 {[%clk 00:04:01]} {[%emt 00:00:02]} c5 {[%clk 00:04:03]} {[%emt
00:00:02]} 2. Nf3 {[%clk 00:04:02]} {[%emt 00:00:01]} e6 {[%clk 00:04:03]}
{[%emt 00:00:01]} 3. d4 {[%clk 00:04:03]} cxd4 {[%clk 00:04:04]} {[%emt
00:00:02]} 4. Nxd4 {[%clk 00:04:04]} {[%emt 00:00:01]} a6 {[%clk 00:04:06]}
{[%emt 00:00:01]} 5. Bd3 {[%clk 00:04:04]} {[%emt 00:00:01]} Bc5 {[%clk
00:04:06]} {[%emt 00:00:01]} 6. Nb3 {[%clk 00:04:05]} Be7 {[%clk 00:04:08]} 7.
f4 {[%clk 00:04:04]} {[%emt 00:00:04]} d6 {[%clk 00:04:09]} {[%emt 00:00:01]} 8.
Qf3 {[%clk 00:04:05]} {[%emt 00:00:01]} Nd7 {[%clk 00:04:09]} {[%emt 00:00:01]}
9. Be3 {[%clk 00:04:05]} {[%emt 00:00:01]} Ngf6 {[%clk 00:04:05]} {[%emt
00:00:07]} 10. N1d2 {[%clk 00:04:06]} {[%emt 00:00:01]} Qc7 {[%clk 00:03:58]}
{[%emt 00:00:09]} 11. g4 {[%clk 00:04:06]} {[%emt 00:00:02]} Nc5 {[%clk
00:03:39]} {[%emt 00:00:20]} 12. Nxc5 {[%clk 00:04:05]} {[%emt 00:00:03]} dxc5
{[%clk 00:03:39]} {[%emt 00:00:02]} 13. g5 {[%clk 00:04:05]} {[%emt 00:00:02]}
Nd7 {[%clk 00:03:40]} {[%emt 00:00:01]} 14. a4 {[%clk 00:04:01]} {[%emt
00:00:06]} b6 {[%clk 00:03:40]} {[%emt 00:00:02]} 15. e5 {[%clk 00:03:55]}
{[%emt 00:00:09]} Rb8 {[%clk 00:03:08]} {[%emt 00:00:34]} 1-0

[ePGN "0.1;DGT LiveChess/2.2.3"]

[Event "new tournament description"]
[Site ""]
[Date "2018.12.27"]
[Round "5.1"]
[White "GOZZOLI"]
[Black "BELLAHCENE"]
[Result "1-0"]
[TimeControl "4min+2sec"]
[WhiteElo "2565"]
[BlackElo "2448"]

1. d4 {[%clk 00:04:03]} {[%emt 00:01:17]} Nf6 {[%clk 00:04:03]} {[%emt
00:00:02]} 2. Nf3 {[%clk 00:04:03]} {[%emt 00:00:02]} e6 {[%clk 00:04:04]}
{[%emt 00:00:01]} 3. Bg5 {[%clk 00:03:58]} {[%emt 00:00:07]} d5 {[%clk
00:03:59]} {[%emt 00:00:07]} 4. e3 {[%clk 00:03:58]} {[%emt 00:00:02]} Nbd7
{[%clk 00:03:43]} {[%emt 00:00:18]} 5. Nbd2 {[%clk 00:03:51]} {[%emt 00:00:08]}
c5 {[%clk 00:03:38]} {[%emt 00:00:07]} 6. c3 {[%clk 00:03:50]} {[%emt
00:00:02]} Be7 {[%clk 00:03:31]} {[%emt 00:00:09]} 7. Bd3 {[%clk 00:03:50]}
{[%emt 00:00:03]} h6 {[%clk 00:03:19]} {[%emt 00:00:14]} 8. Bf4 {[%clk
00:03:49]} {[%emt 00:00:03]} b6 {[%clk 00:03:13]} {[%emt 00:00:08]} 9. h3
{[%clk 00:03:29]} {[%emt 00:00:21]} Bb7 {[%clk 00:03:13]} {[%emt 00:00:02]} 10.
O-O {[%clk 00:03:29]} {[%emt 00:00:02]} O-O {[%clk 00:03:11]} {[%emt 00:00:04]}
11. Qc2 {[%clk 00:03:17]} {[%emt 00:00:14]} Qc8 {[%clk 00:03:08]} {[%emt
00:00:06]} 12. Rfe1 {[%clk 00:03:03]} {[%emt 00:00:15]} Ba6 {[%clk 00:02:52]}
{[%emt 00:00:19]} 13. Rad1 {[%clk 00:02:54]} {[%emt 00:00:11]} Rd8 {[%clk
00:02:46]} {[%emt 00:00:08]} 14. a3 {[%clk 00:02:44]} {[%emt 00:00:13]} Bxd3
{[%clk 00:02:36]} {[%emt 00:00:12]} 15. Qxd3 {[%clk 00:02:45]} {[%emt
00:00:01]} Qc6 {[%clk 00:02:34]} {[%emt 00:00:04]} 16. Rc1 {[%clk 00:02:36]}
{[%emt 00:00:11]} Ne4 {[%clk 00:02:27]} {[%emt 00:00:08]} 17. Qe2 {[%clk
00:02:22]} {[%emt 00:00:15]} Nxd2 {[%clk 00:02:17]} {[%emt 00:00:12]} 18. Nxd2
{[%clk 00:02:23]} {[%emt 00:00:01]} Nf6 {[%clk 00:02:18]} {[%emt 00:00:01]} 19.
Be5 {[%clk 00:02:19]} {[%emt 00:00:05]} Nd7 {[%clk 00:02:16]} {[%emt 00:00:04]}
20. Bh2 {[%clk 00:02:20]} {[%emt 00:00:01]} Bd6 {[%clk 00:02:10]} {[%emt
00:00:09]} 21. Bxd6 Qxd6 {[%clk 00:02:11]} 22. Red1 {[%clk 00:02:14]} {[%emt
00:00:03]} Rac8 {[%clk 00:02:03]} {[%emt 00:00:10]} 23. b4 {[%clk 00:02:01]}
{[%emt 00:00:14]} e5 {[%clk 00:01:59]} {[%emt 00:00:07]} 24. dxc5 {[%clk
00:01:48]} {[%emt 00:00:15]} bxc5 {[%clk 00:01:59]} {[%emt 00:00:02]} 25. e4
{[%clk 00:01:49]} {[%emt 00:00:02]} cxb4 {[%clk 00:01:53]} {[%emt 00:00:08]} 26.
cxb4 {[%clk 00:01:43]} {[%emt 00:00:07]} Rxc1 {[%clk 00:01:32]} {[%emt
00:00:23]} 27. Rxc1 {[%clk 00:01:44]} {[%emt 00:00:01]} Nf6 {[%clk 00:01:34]}
28. exd5 {[%clk 00:01:13]} {[%emt 00:00:34]} Qxd5 {[%clk 00:01:35]} 29. Nc4
{[%clk 00:01:06]} {[%emt 00:00:09]} Rc8 {[%clk 00:01:25]} {[%emt 00:00:12]} 30.
Rc2 {[%clk 00:01:07]} {[%emt 00:00:01]} e4 {[%clk 00:00:59]} {[%emt 00:00:28]}
31. Ne3 {[%clk 00:01:05]} {[%emt 00:00:03]} Rxc2 {[%clk 00:00:58]} {[%emt
00:00:04]} 32. Qxc2 {[%clk 00:01:07]} Qd7 {[%clk 00:00:57]} {[%emt 00:00:03]}
33. a4 {[%clk 00:01:02]} {[%emt 00:00:06]} Qd4 {[%clk 00:00:38]} {[%emt
00:00:21]} 34. b5 {[%clk 00:00:57]} {[%emt 00:00:07]} Nd5 {[%clk 00:00:36]}
{[%emt 00:00:04]} 35. Qc8+ {[%clk 00:00:58]} 1-0

[Event "new tournament description"]
[Site ""]
[Date "2018.12.27"]
[Round "5.2"]
[White "BRAEUNING"]
[Black "GULIYEV"]
[Result "0-1"]
[TimeControl "4min+2sec"]
[WhiteElo "2324"]
[BlackElo "2550"]

1. e4 {[%clk 00:04:04]} {[%emt 00:23:00]} c5 {[%clk 00:04:01]} {[%emt
00:00:03]} 2. c3 {[%clk 00:04:04]} {[%emt 00:00:02]} d5 {[%clk 00:04:02]}
{[%emt 00:00:01]} 3. exd5 {[%clk 00:04:05]} {[%emt 00:00:01]} Qxd5 {[%clk
00:04:03]} 4. d4 {[%clk 00:04:07]} Nf6 {[%clk 00:04:03]} {[%emt 00:00:02]} 5.
Nf3 {[%clk 00:04:08]} Bg4 {[%clk 00:04:04]} {[%emt 00:00:02]} 6. Nbd2 {[%clk
00:04:09]} e6 {[%clk 00:04:04]} {[%emt 00:00:02]} 7. Qa4+ {[%clk 00:03:59]}
{[%emt 00:00:13]} Nbd7 {[%clk 00:03:56]} {[%emt 00:00:10]} 8. Bc4 {[%clk
00:03:51]} {[%emt 00:00:10]} Qd6 {[%clk 00:03:46]} {[%emt 00:00:13]} 9. Bb5
{[%clk 00:03:36]} {[%emt 00:00:17]} Bxf3 {[%clk 00:03:37]} {[%emt 00:00:11]} 10.
Nxf3 {[%clk 00:03:35]} {[%emt 00:00:02]} a6 {[%clk 00:03:38]} {[%emt 00:00:02]}
11. dxc5 {[%clk 00:03:22]} {[%emt 00:00:16]} Qxc5 {[%clk 00:03:37]} {[%emt
00:00:03]} 12. Bxd7+ {[%clk 00:03:15]} {[%emt 00:00:08]} Nxd7 {[%clk 00:03:36]}
{[%emt 00:00:02]} 13. O-O {[%clk 00:03:15]} {[%emt 00:00:03]} Be7 {[%clk
00:03:35]} {[%emt 00:00:04]} 14. Rd1 {[%clk 00:03:04]} {[%emt 00:00:12]} Qc6
{[%clk 00:03:29]} {[%emt 00:00:08]} 15. Qd4 {[%clk 00:02:45]} {[%emt 00:00:21]}
Bf6 {[%clk 00:03:08]} {[%emt 00:00:22]} 16. Qb4 {[%clk 00:02:32]} {[%emt
00:00:16]} a5 {[%clk 00:03:06]} {[%emt 00:00:05]} 17. Qb3 {[%clk 00:02:13]}
{[%emt 00:00:21]} Nc5 {[%clk 00:02:53]} {[%emt 00:00:14]} 18. Qc4 {[%clk
00:01:54]} {[%emt 00:00:21]} O-O {[%clk 00:02:45]} {[%emt 00:00:10]} 19. Nd4
{[%clk 00:01:51]} {[%emt 00:00:05]} Qb6 {[%clk 00:02:10]} {[%emt 00:00:38]} 20.
Be3 {[%clk 00:01:45]} {[%emt 00:00:08]} Rfc8 {[%clk 00:02:08]} {[%emt
00:00:03]} 21. Nb3 {[%clk 00:01:24]} {[%emt 00:00:24]} Be7 {[%clk 00:02:07]}
{[%emt 00:00:03]} 22. Nxc5 {[%clk 00:01:17]} {[%emt 00:00:09]} Bxc5 {[%clk
00:02:08]} {[%emt 00:00:02]} 23. Bxc5 {[%clk 00:01:14]} {[%emt 00:00:05]} Rxc5
{[%clk 00:02:08]} {[%emt 00:00:02]} 24. Qd4 {[%clk 00:01:09]} {[%emt 00:00:07]}
g6 {[%clk 00:02:07]} {[%emt 00:00:03]} 25. b3 {[%clk 00:00:58]} {[%emt
00:00:14]} e5 {[%clk 00:02:05]} {[%emt 00:00:04]} 26. Qd3 {[%clk 00:00:50]}
{[%emt 00:00:09]} a4 {[%clk 00:01:58]} {[%emt 00:00:09]} 27. c4 {[%clk
00:00:50]} {[%emt 00:00:03]} Qb4 {[%clk 00:01:54]} {[%emt 00:00:06]} 28. h4
{[%clk 00:00:44]} {[%emt 00:00:08]} h5 {[%clk 00:01:53]} {[%emt 00:00:02]} 29.
g3 {[%clk 00:00:45]} {[%emt 00:00:02]} Rac8 {[%clk 00:01:54]} 30. Rac1 {[%clk
00:00:40]} {[%emt 00:00:07]} b5 {[%clk 00:01:54]} {[%emt 00:00:03]} 31. Qf3
{[%clk 00:00:30]} {[%emt 00:00:13]} bxc4 {[%clk 00:01:43]} {[%emt 00:00:12]} 32.
Rd7 {[%clk 00:00:30]} {[%emt 00:00:02]} Rf8 {[%clk 00:01:44]} {[%emt 00:00:02]}
33. bxc4 {[%clk 00:00:26]} {[%emt 00:00:07]} Rxc4 {[%clk 00:01:43]} {[%emt
00:00:03]} 34. Re1 {[%clk 00:00:22]} {[%emt 00:00:05]} Qxe1+ {[%clk 00:01:43]}
{[%emt 00:00:02]} 0-1

[ePGN "0.1;DGT LiveChess/2.2.3"]

[Event "new tournament description"]
[Site ""]
[Date "2018.12.27"]
[Round "6.1"]
[White "GULIYEV"]
[Black "GOZZOLI"]
[Result "0-1"]
[TimeControl "4min+2sec"]
[WhiteElo "2550"]
[BlackElo "2565"]

1. e4 {[%clk 00:04:03]} {[%emt 00:00:01]} e5 {[%clk 00:04:03]} {[%emt
00:00:02]} 2. Nf3 {[%clk 00:04:04]} Nc6 {[%clk 00:04:04]} 3. Bb5 {[%clk
00:04:06]} a6 {[%clk 00:04:05]} {[%emt 00:00:03]} 4. Ba4 {[%clk 00:04:07]} Nf6
{[%clk 00:04:06]} 5. O-O {[%clk 00:04:07]} {[%emt 00:00:02]} Be7 {[%clk
00:04:06]} {[%emt 00:00:01]} 6. Re1 {[%clk 00:04:08]} {[%emt 00:00:02]} b5
{[%clk 00:04:06]} {[%emt 00:00:02]} 7. Bb3 {[%clk 00:04:09]} {[%emt 00:00:01]}
O-O {[%clk 00:04:05]} {[%emt 00:00:02]} 8. d4 {[%clk 00:04:09]} {[%emt
00:00:02]} d6 {[%clk 00:04:06]} {[%emt 00:00:01]} 9. c3 {[%clk 00:04:09]}
{[%emt 00:00:02]} Bg4 {[%clk 00:04:07]} {[%emt 00:00:01]} 10. h3 {[%clk
00:04:10]} {[%emt 00:00:02]} Bxf3 {[%clk 00:03:47]} {[%emt 00:00:22]} 11. gxf3
{[%clk 00:04:11]} {[%emt 00:00:01]} Na5 {[%clk 00:03:32]} {[%emt 00:00:17]} 12.
f4 {[%clk 00:04:09]} {[%emt 00:00:03]} Nxb3 {[%clk 00:03:25]} {[%emt 00:00:09]}
13. axb3 {[%clk 00:04:10]} {[%emt 00:00:02]} Nd7 {[%clk 00:03:09]} {[%emt
00:00:18]} 14. fxe5 {[%clk 00:03:39]} {[%emt 00:00:33]} dxe5 {[%clk 00:03:10]}
{[%emt 00:00:01]} 15. Nd2 {[%clk 00:03:40]} {[%emt 00:00:01]} exd4 {[%clk
00:03:04]} {[%emt 00:00:07]} 16. cxd4 {[%clk 00:03:40]} {[%emt 00:00:01]} c5
{[%clk 00:03:06]} 17. Nf3 {[%clk 00:03:38]} {[%emt 00:00:04]} cxd4 {[%clk
00:02:53]} {[%emt 00:00:15]} 18. Nxd4 {[%clk 00:03:34]} {[%emt 00:00:06]} Nc5
{[%clk 00:02:53]} {[%emt 00:00:01]} 19. Bf4 {[%clk 00:03:28]} {[%emt 00:00:08]}
Re8 {[%clk 00:02:51]} {[%emt 00:00:05]} 20. b4 {[%clk 00:03:17]} {[%emt
00:00:12]} Na4 {[%clk 00:02:43]} {[%emt 00:00:10]} 21. Nc6 {[%clk 00:02:26]}
{[%emt 00:00:53]} Qc8 {[%clk 00:02:43]} {[%emt 00:00:02]} 22. Rc1 {[%clk
00:01:30]} {[%emt 00:00:58]} Qxh3 {[%clk 00:02:21]} {[%emt 00:00:24]} 23. b3
{[%clk 00:01:19]} {[%emt 00:00:13]} Nb2 {[%clk 00:01:16]} {[%emt 00:01:07]} 24.
Qd5 {[%clk 00:01:07]} {[%emt 00:00:14]} Bh4 {[%clk 00:00:35]} {[%emt 00:00:43]}
25. Re3 {[%clk 00:01:04]} {[%emt 00:00:06]} Qg4+ {[%clk 00:00:36]} {[%emt
00:00:01]} 26. Bg3 {[%clk 00:01:04]} {[%emt 00:00:02]} Bg5 {[%clk 00:00:38]} 27.
Ne5 {[%clk 00:00:27]} {[%emt 00:00:39]} Qe6 {[%clk 00:00:30]} {[%emt 00:00:10]}
28. f4 {[%clk 00:00:21]} {[%emt 00:00:08]} Bf6 {[%clk 00:00:23]} {[%emt
00:00:09]} 29. Rc2 {[%clk 00:00:15]} {[%emt 00:00:08]} Qh3 {[%clk 00:00:09]}
{[%emt 00:00:16]} 30. Rxb2 {[%clk 00:00:12]} {[%emt 00:00:06]} Rad8 {[%clk
00:00:10]} 31. Qxf7+ {[%emt 00:00:03]} Kh8 32. Rbe2 {[%clk 00:00:07]} {[%emt
00:00:06]} Bxe5 {[%clk 00:00:12]} {[%emt 00:00:02]} 33. fxe5 {[%emt 00:00:02]}
Rf8 34. Bf4 {[%clk 00:00:03]} {[%emt 00:00:06]} Qg4+ {[%clk 00:00:15]} 35. Rg3
{[%clk 00:00:04]} Qxg3+ {[%clk 00:00:15]} {[%emt 00:00:02]} 36. Bxg3 Rxf7
{[%clk 00:00:17]} 37. e6 {[%clk 00:00:06]} Rf6 {[%clk 00:00:17]} {[%emt
00:00:02]} 38. e7 {[%clk 00:00:07]} {[%emt 00:00:01]} Re8 {[%clk 00:00:18]} 39.
Bh4 {[%clk 00:00:08]} {[%emt 00:00:01]} Rh6 {[%clk 00:00:20]} 40. Rf2 {[%clk
00:00:08]} {[%emt 00:00:03]} Kg8 {[%clk 00:00:21]} 41. Rd2 {[%clk 00:00:09]}
Rxh4 {[%clk 00:00:21]} {[%emt 00:00:02]} 0-1